Cogmind - Beta 11 @@@ ROGUE MODE // 2022.03.21 @ 07:00:39 Player: Dytto Result: Destroyed by S-10 Pest with Light Assault Rifle Performance ------------- Evolutions (1) 500 Regions Visited (2) 400 Robots Destroyed (19) 95 Value Destroyed (409) 409 Prototype IDs (1) 20 Alien Tech Used (0) 0 Bonus (0) 0 TOTAL SCORE: 1424 Bonus ------- None Cogmind --------- Core Integrity 0/400 Matter 300/300 Energy 125/125 System Corruption 0% Temperature Cool (0) Movement Rolling (100) Location -9/Materials Parts ------- > --- POWER (2) -------- Light Ion Engine > --- PROPULSION (2) --- Compact Wheel > --- UTILITY (3) ------ Advanced Visual Processing Unit > --- WEAPON (2) ------- Heavy Hammer > --- INVENTORY (5) ---- Flight Unit Small Matter Pod (50) Actuator Array Medium Laser Grenade Launcher Peak State ------------ > --- POWER ------------ Light Ion Engine Light Ion Engine > --- PROPULSION ------- Wheel Compact Wheel > --- UTILITY ---------- Advanced Visual Processing Unit Improved Terrain Scanner Actuator Array > --- WEAPON ----------- Improved EM Shotgun Shotgun > --- INVENTORY -------- Flight Unit Small Matter Pod Medium Laser Grenade Launcher [Rating: 18] Favorites ----------- Power Light Ion Engine Engine Light Ion Engine Propulsion Hover Unit Leg Aluminum Leg Wheel Compact Wheel Hover Unit Hover Unit Flight Unit Flight Unit Utility Tractor Beam Device Tractor Beam Storage Small Matter Pod Processor Advanced Visual Processing Unit Protection Medium Armor Plating Weapon Light Cannon Energy Gun EM Shotgun Ballistic Gun Shotgun Ballistic Cannon Light Cannon Launcher Grenade Launcher Impact Weapon Heavy Hammer Special Melee Weapon Datajack Build | -11 -10 -9 ------- Run | Scr Mat Mat Slots Evolved 2 | . . 2 Power 1 | . . 1 Propulsion . | . . . Utility 1 | . . 1 Weapon . | . . . Parts Attached 29 | 4 6 19 Power 5 | 1 1 3 Engine 5 | 1 1 3 Core . | . . . Reactor . | . . . Propulsion 7 | 2 1 4 Treads . | . . . Leg 1 | . . 1 Wheel 4 | 2 . 2 Hover 1 | . 1 . Flight 1 | . . 1 Utility 6 | . 1 5 Device 3 | . . 3 Storage 1 | . 1 . Processor 1 | . . 1 Hackware . | . . . Protection 1 | . . 1 Artifact . | . . . Weapon 11 | 1 3 7 Energy Gun 4 | 1 . 3 Energy Cannon . | . . . Ballistic Gun 2 | . . 2 Ballistic Cannon 2 | . 1 1 Launcher 1 | . 1 . Special Weapon . | . . . Impact Weapon 1 | . . 1 Slashing Weapon . | . . . Piercing Weapon . | . . . Special Melee Weapon 1 | . 1 . Unidentified Prototypes 1 | . . 1 Parts Lost 16 | . 5 11 Power 4 | . 2 2 Propulsion 4 | . 1 3 Utility 3 | . . 3 Weapon 5 | . 2 3 Highest Loss Streak 5 | . 2 5 To Critical Strikes . | . . . Average Slot Usage (%) 61 | . 66 59 Engine 7 | . 12 5 Leg 5 | . . 8 Wheel 9 | . 21 4 Hover 6 | . 4 7 Device 6 | . . 9 Processor 1 | . . 1 Energy Gun 9 | . 10 9 Ballistic Gun 1 | . . 2 Ballistic Cannon 6 | . 3 8 Special Melee Weapon 3 | . 11 . Naked Turns 21 | . . 21 Heaviest Build 20 | 5 9 20 Greatest Support 26 | 26 26 26 Greatest Overweight (x) 1 | . 1 1 Average Overweight (x) . | . . . Largest Inventory Capacity 5 | 5 5 5 Average Capacity 5 | 5 5 5 Most Carried 5 | 4 5 5 Average Carried 4 | 1 4 4 Final Capacity 5 | 5 5 5 Final Carried 5 | 4 4 5 Class Distribution -------------------- 100% | Mutant Dominant Class ---------------- Mutant | -10/Materials Mutant | -9/Materials Resources | -11 -10 -9 ----------- Run | Scr Mat Mat Matter Collected 648 | 212 105 331 Remotely 198 | . . 198 Salvage Created 428 | . 197 231 Parts 37 | . 15 22 Haulers Intercepted . | . . . Recyclers Shooed . | . . . Parts Field Recycled . | . . . Retrieved Matter . | . . . Parts Self-Destructed . | . . . Prevented . | . . . Kills | -11 -10 -9 ------- Run | Scr Mat Mat Combat Hostiles Destroyed 18 | . 8 10 Melee 1 | . . 1 Guns 6 | . 3 3 Cannons 7 | . 3 4 AOE 3 | . 2 1 Classes Destroyed 3 | . 2 1 Worker 1 | . . 1 Swarmer 10 | . 3 7 Grunt 8 | . 5 3 Best Kill Streak 5 | . 2 5 Combat Bots Only 4 | . 2 4 Max Kills in Single Turn 2 | . 2 2 Gunslinging . | . . . Exploded 2 | . 2 1 Melee 1 | . . 1 Uniques/NPCs Destroyed . | . . . Combat | -11 -10 -9 -------- Run | Scr Mat Mat Damage Taken 1760 | . 623 1137 Core 632 | . 227 405 Absorbed by Shields . | . . . Regen/Repaired (Parts) 109 | . . 109 Core Remaining (%) 54 | 100 9 . Volleys Fired 52 | . 35 17 Largest 2 | . 2 2 Hottest 80 | . 65 80 Shots Fired 62 | . 41 21 Gun 27 | . 17 10 Cannon 29 | . 18 11 Launcher 6 | . 6 . Special . | . . . Kinetic 29 | . 18 11 Thermal . | . . . Explosive 6 | . 6 . Electromagnetic 27 | . 17 10 Robot Hit Streak 9 | . 6 9 Robot Miss Streak 4 | . 3 4 Penetration Max . | . . . Secondary Targets . | . . . Shots Hit Robots 54 | . 38 16 Core Hits 23 | . 10 13 Critical Kills . | . . . Critical Parts Destroyed 1 | . . 1 Critical Strikes 2 | . 1 1 Blast 1 | . 1 . Smash 1 | . . 1 Melee Attacks 23 | . 15 8 Impact 8 | . . 8 Slashing . | . . . Piercing . | . . . Sneak Attacks 8 | . 8 . Combat Hostiles 1 | . 1 . Follow-up Attacks . | . . . Damage Inflicted 1097 | . 594 503 Guns 244 | . 152 92 Cannons 255 | . 161 94 Explosions 343 | . 281 62 Melee 208 | . . 208 Ramming 47 | . . 47 Kinetic 255 | . 161 94 Thermal 62 | . . 62 Explosive 281 | . 281 . Electromagnetic 244 | . 152 92 Impact 208 | . . 208 Slashing . | . . . Piercing . | . . . Highest Corruption 1 | . 1 . Average Corruption 1 | . 1 . Corruption Purged . | . . . Corruption Blocked . | . . . Effects 1 | . 1 . Data Loss (minor) 1 | . 1 . Overload Shots . | . . . Overflow Damage 59 | . . 59 Projectiles . | . . . Explosions . | . . . Melee 59 | . . 59 Knockbacks 5 | . 3 2 Impact 2 | . . 2 Kinetic 3 | . 3 . Secondary . | . . . Self-Inflicted Damage 71 | . 27 44 Shots 3 | . 2 1 Rammed 18 | . . 18 Targets Rammed 24 | . . 24 Kicked 6 | . . 6 Crushed . | . . . Highest Temperature 45 | . 45 20 Average Temperature 12 | . 13 9 Received Heat Transfer 534 | . 273 261 Siege Activations . | . . . Robots Corrupted 1 | . . 1 Combat Hostiles 1 | . . 1 Parts Fried . | . . . Impact Corruptions 1 | . . 1 Robots Melted . | . . . Combat Hostiles . | . . . Parts Melted . | . . . Heat Transferred 100 | . . 100 Parts Sabotaged . | . . . Parts Stolen . | . . . Parts Stripped . | . . . Power Chain Reactions 1 | . . 1 Missiles Intercepted . | . . . Alert | -11 -10 -9 ------- Run | Scr Mat Mat Peak Influence 267 | . 267 197 Initial 112 | . . 112 Average 89 | . 93 92 Maximum Alert Level 1 | . 1 . Low Security (%) 98 | 100 93 100 Level 1 1 | . 6 . Level 2 . | . . . Level 3 . | . . . Level 4 . | . . . Level 5 . | . . . High Security . | . . . Max Security . | . . . Squads Dispatched 3 | . . 3 Investigation 2 | . . 2 Extermination . | . . . Reinforcement 1 | . . 1 Assault . | . . . Garrison . | . . . Intercept . | . . . Searches Triggered . | . . . Construction Impeded . | . . . Haulers Reinforced . | . . . Active Scanning Responses . | . . . Cargo Convoy Interrupts . | . . . Stealth | -11 -10 -9 --------- Run | Scr Mat Mat Distress Signals 6 | . 3 3 Communications Jammed . | . . . Distress Signals . | . . . Times Spotted 46 | . 17 29 Peak Tracking Total 10 | . 6 10 Tactical Retreats 6 | . 4 2 Traps | -11 -10 -9 ------- Run | Scr Mat Mat Traps Triggered 3 | . 1 2 Indirectly . | . . . Trap Hack Attempts . | . . . Triggered . | . . . Disarmed . | . . . Reprogrammed . | . . . Reused . | . . . Traps Extracted . | . . . Installed . | . . . Triggered . | . . . Machines | -11 -10 -9 ---------- Run | Scr Mat Mat Machines Disabled 1 | . 1 . Max in Single Turn 1 | . 1 . Machines Sabotaged . | . . . Garrisons Compromised . | . . . Overloaded Fab Kills . | . . . Hacking | -11 -10 -9 --------- Run | Scr Mat Mat Machines Accessed 3 | . 1 2 Terminals . | . . . Fabricators . | . . . Repair Stations 2 | . . 2 Recycling Units 1 | . 1 . Scanalyzers . | . . . Garrison Access . | . . . Total Hacks 6 | . 2 4 Successful 4 | . 1 3 Failed 2 | . 1 1 Catastrophic . | . . . Database Lockouts . | . . . Manual . | . . . Terminals . | . . . Fabricators . | . . . Repair Stations 4 | . . 4 Recycling Units 2 | . 2 . Scanalyzers . | . . . Garrison Access . | . . . Terminal Hacks . | . . . Fabricator Hacks . | . . . Repair Station Hacks 3 | . . 3 Scan Component 2 | . . 2 Repair 1 | . . 1 Recycling Unit Hacks 1 | . 1 . Report Inventory 1 | . 1 . Scanalyzer . | . . . Garrison Access Hacks . | . . . Unauthorized Hacks . | . . . Terminals . | . . . Fabricators . | . . . Repair Stations . | . . . Recycling Units . | . . . Scanalyzers . | . . . Garrison Access . | . . . Data Cores Recovered . | . . . Used . | . . . Hacking Detections 1 | . . 1 Full Trace Events . | . . . Feedback Events . | . . . Feedback Blocked . | . . . Robot Schematics Acquired . | . . . Robots Built . | . . . Authchips . | . . . Time . | . . . Total Robot Build Rating . | . . . Part Schematics Acquired . | . . . Parts Built . | . . . Authchips . | . . . Time . | . . . Total Part Build Rating . | . . . Parts Repaired 1 | . . 1 Time 26 | . . 26 Parts Recycled . | . . . Recycled Matter . | . . . Retrieved Matter . | . . . Retrieved Components . | . . . Parts Scanalyzed . | . . . Part Schematics Acquired . | . . . Parts Damaged . | . . . Bothacking | -11 -10 -9 ------------ Run | Scr Mat Mat Used RIF Installer . | . . . Robots Hacked 5 | . 5 . Non-combat 3 | . 3 . Combat 2 | . 2 . Robot Hacks Applied 8 | . 8 . parse_system 3 | . 3 . no_distress 4 | . 4 . find_recycling 1 | . 1 . Relay Couplers Released . | . . . Fabnet Peak Effective % . | . . . Robots Rewired . | . . . Allies Hacked . | . . . Hacks Repelled . | . . . Allies | -11 -10 -9 -------- Run | Scr Mat Mat Total Allies . | . . . Largest Group . | . . . Highest-Rated Group . | . . . Highest-Rated Ally . | . . . Total Orders . | . . . Ally Attacks . | . . . Total Damage . | . . . Kills . | . . . Allies Corrupted . | . . . Allies Melted . | . . . Intel | -11 -10 -9 ------- Run | Scr Mat Mat Robot Analysis Total . | . . . Derelict Logs Recovered . | . . . Drone Launches . | . . . Drone Recoveries . | . . . Exploration | -11 -10 -9 ------------- Run | Scr Mat Mat Turns Passed 1877 | 65 540 1272 Spaces Moved 790 | 65 321 404 Core 12 | 6 . 6 Treads . | . . . Legs 138 | . . 138 Wheels 501 | 59 182 260 Hover 139 | . 139 . Flight . | . . . Fastest Speed 50 | 50 60 50 Average Speed 95 | 85 84 105 Slowest Speed 190 | 90 125 190 Overloaded Moves . | . . . Propulsion Burnouts . | . . . Robots Hopped . | . . . Cave-ins Triggered . | . . . Exploration Rate (%) 27 | 4 46 32 Regions Visited 2 Branch Regions . Pre-discovered Areas . | . . . Known Exits Taken . | . . . Unknown Exits Taken 2 | 1 1 . Scrap Searched . | . . . Spaces Dug . | . . . Terrain Destroyed 39 | . 36 3 Melee . | . . . Projectile . | . . . AOE 39 | . 36 3 Terrain Rammed . | . . . Walls Destroyed . | . . . Machines Disabled . | . . . Actions | -11 -10 -9 --------- Run | Scr Mat Mat Total 1821 | 72 541 1208 Wait 881 | . 154 727 Move 788 | 64 320 404 Hop . | . . . Pick Up 16 | 4 6 6 Fast Attach 15 | 4 2 9 Attach 11 | . 4 7 Detach 3 | . 1 2 Swap 3 | . . 3 Drop 5 | . 4 1 Fire 52 | . 35 17 Melee 23 | . 15 8 Ram 18 | . . 18 Kick 6 | . . 6 Crush . | . . . Escape Stasis . | . . . Rewire . | . . . Trap . | . . . Miscellaneous . | . . . Route ------- -11/Scrapyard -10/Materials (discovered 2 exits: *Mat / [*Min]) -9/Materials History --------- Turn | Location | Event 27 | -11/Scrapyard | Discovered new exit (range 16) 66 | -11/Scrapyard | Entered Materials 304 | -10/Materials | Build established: Mutant 449 | -10/Materials | Discovered new exit (range 16) 503 | -10/Materials | Core integrity fell below 50% 574 | -10/Materials | Core integrity fell below 20% 603 | -10/Materials | Discovered new exit (range 3) 606 | -10/Materials | Entered another Materials area 606 | -9/Materials | Evolved 2 slots: Power x1, Utility x1 650 | -9/Materials | Repaired Lgt. Cannon 1566 | -9/Materials | Core integrity fell below 50% 1600 | -9/Materials | Lost 5 parts (1p1n1u2w) 1840 | -9/Materials | Core integrity fell below 20% 1878 | -9/Materials | Destroyed by S-10 Pest with Light Assault Rifle Last Messages --------------- 01812_ K-01 Serf cleans the Terminal. 01817_ U-05 Engineer lays Concrete. 01817_ W-16 Scout sends out distress signal. 01820_ U-05 Engineer lays Concrete. 01830_ G-34 Mercenary knocked back. 01831_ Lgt. Ion Engine destroyed. 01832_ Critical hit (Burn: +37). 01832_ W-16 Scout sends out distress signal. 01833_ G-34 Mercenary suffers critical hit (Smash). 01833_ Destroyed Sml. Laser. 01833_ G-34 Mercenary system corrupted by crushing effect. 01833_ G-34 Mercenary knocked back. 01834_ G-34 Mercenary system terminally corrupted. 01837_ Acquired 5 matter. 01839_ Critical hit (Burn: +37). 01845_ Wheel destroyed. 01848_ Med. Armor Plating destroyed. 01852_ Imp. Terrain Scanner destroyed. 01852_ K-01 Serf collects debris. 01858_ Imp. EM Shotgun destroyed. Map ----- +----------------------------------------------------+ | ????????????????# ?????????????????? | | ????????????????# ???????#?????#???? | | ????????????????# ?????????????????? | | ????????????????# ##########????????? | | ????????????????# ## #?????#??? | | ????????????????# ## ########## | | ?????# ????????## ## / % | | ?????# ###+### # ########## | | ?????# # #????#???? | | ?????# + #????????? | | ?????# # #????????? | | ?????# ####### # #????????? | | ???????????????## ## #????????? | | ????????????????# ## #????????? | | ????????????????# ## #????????? | | ????????????????# ######/###????????? | | ????????????????# #????# #??????????? | | ????????????????# #????# #??????????? | | ????????????????# #????# #?????? ??? | | ?????????######## #????# #?????????## | | ?????????# """ # #????# #??????????? | | ?????????# """ # #????# #??????????" | | ?????????# """ / #????? ???????????" | | ?????????# s# #??????????? | | ?????????# # +??????????? | | ?????????# @!# #??????????? | | ?????????############ #??????????? | | ????????????????????? #??????????? | | ?????????????????????[[[[[[#??????????? | | ??????????????????????[[[[[#??????????? | | ??????????????????????######??????????? | | ??????????????????????????????????????? | | ??????????????????????????????????????? | | ??????????????????????????????????????? | | ??????????????????????????????????????? | | ??????????????????????????????????????? | | ??????????????????????????????????????? | | ??????????????????????????????????????? | | ??????????????????????????????????????? | | | | | | | | | | | | | | | | | | | | | | | +----------------------------------------------------+ Best States ------------- Heat Dissipation 28 Energy Generation 15 Energy Capacity 250 Matter Stores 300 Matter Capacity 350 Sight Range 20 Terrain Scan Range 16 Terrain Scan Density 10 Armor Coverage 225 Evasion (%) 55 Item Schematics ----------------- None Robot Schematics ------------------ None Fabricated ------------ Nothing Alien Tech Used ----------------- None Achievements -------------- None Challenges ------------ None Game ------ Seed IonColdMallet Manual? 0 Play Time 00:16:39 Cumulative 12.9 hours Start 2022.03.21 @ 06:45:24 End 2022.03.21 @ 07:00:39 Sessions 1 Manual Loads 0 Difficulty Rogue Special Mode None Game No. 42 Rogue 6 Adventurer 36 Explorer 0 Win Type - Total 0 Types 0/0/0/0/0/0/0/0/0 Lore% 14 Gallery% 17 Achievement% 13 Wizard Run 0 Options --------- ASCII 0 Keyboard 1 Movement Numpad Keybinds 0 Fullscreen 2 Font 18/X11Bold Map View 76x50 Tactical HUD 1 Map Filters NONE Filters NONE Steam 1 RUN: d8d70e72-d8ae-4ee0-8f2f-bf4c7cfd4bde